bitfinex/quotes_SOLUSD_20250106
["timestamp","ask_amount","ask_price","bid_price","bid_amount"]
[1736132476299,0.87018271,215.51,215.47,9.01049723]
[1736132478206,20.0,215.5,215.47,9.01049723]
[1736132478385,9.01049723,215.48,215.4,9.01049723]
[1736132478579,9.88087891,215.47,215.4,9.01049723]
[1736132478786,9.88087891,215.47,215.41,9.01049723]
[1736132479107,9.88087325,215.5,215.44,9.01049723]
[1736132479292,20.87037602,215.5,215.44,9.01049723]
[1736132479906,20.87037602,215.5,215.45,9.01049723]
[1736132480115,0.87017656,215.51,215.48,9.01049723]
[1736132480401,11.53866489,215.54,215.4,136.85906384]
[1736132480402,0.8700921,215.53,215.5,9.01049723]
[1736132480600,1.17825976,215.54,215.5,9.01049723]
[1736132481002,1.17825976,215.54,215.43,137.7054]
[1736132481209,1.17825976,215.54,215.49,9.01049723]
[1736132481424,1.17825976,215.54,215.5,9.01049723]
[1736132481597,0.30816766,215.54,215.5,9.01049723]
[1736132481796,0.87003502,215.53,215.5,9.01049723]
[1736132482192,0.30816766,215.54,215.5,9.01049723]
[1736132483016,0.30816766,215.54,215.49,9.01049723]
[1736132485415,24.08505166,215.54,215.49,9.01049723]
[1736132485719,0.30816766,215.54,215.48,9.01049723]
[1736132485910,0.30816766,215.54,215.49,9.01049723]
[1736132487513,1.17818046,215.54,215.49,9.01049723]
[1736132487819,0.30816766,215.54,215.49,9.01049723]
[1736132488412,0.87001857,215.53,215.48,9.01049723]
[1736132488625,0.87001857,215.53,215.47,9.01049723]
[1736132488930,9.01049723,215.52,215.43,137.7054]
[1736132489096,9.88066022,215.51,215.44,9.01049723]
[1736132489721,0.87016299,215.51,215.45,9.01049723]
[1736132491230,9.88066022,215.51,215.44,9.01049723]
[1736132491927,9.01049723,215.5,215.44,9.01049723]
[1736132492148,0.87023062,215.49,215.44,9.01049723]
[1736132492423,9.88072785,215.49,215.43,136.2]
[1736132492800,9.88072785,215.49,215.42,9.01049723]
[1736132493209,0.87023062,215.49,215.43,9.01049723]
[1736132494030,0.87023062,215.49,215.39,0.65924885]
[1736132494227,0.87023062,215.49,215.45,9.01049723]
[1736132494538,0.87019784,215.51,215.45,9.01049723]
[1736132494923,9.88069507,215.51,215.45,9.01049723]
[1736132496949,9.88069507,215.51,215.44,9.01049723]
[1736132497643,9.88069507,215.51,215.44,6.88917769]
[1736132498009,32.78738123,215.5,215.43,9.01049723]
[1736132498209,0.87029147,215.49,215.43,9.01049723]
[1736132498815,9.8807887,215.49,215.42,9.01049723]
[1736132499746,9.01049723,215.47,215.4,9.01049723]
[1736132499936,0.87035969,215.46,215.4,9.01049723]
[1736132500242,0.87035969,215.46,215.41,9.01049723]
[1736132500836,0.87035175,215.47,215.41,9.01049723]
[1736132501157,0.87035175,215.47,215.42,9.01049723]
[1736132501943,24.64720142,215.48,215.42,9.01049723]
[1736132502835,0.87031742,215.48,215.43,9.01049723]
[1736132503136,0.8702534,215.49,215.44,9.01049723]
[1736132503347,0.8702534,215.5,215.44,9.01049723]
[1736132503542,0.8702534,215.5,215.39,0.65932984]
[1736132503746,0.87015854,215.52,215.47,9.01049723]
[1736132504614,0.87015854,215.52,215.46,9.01049723]
[1736132505843,20.30816766,215.54,215.48,9.01049723]
[1736132506040,29.31866489,215.54,215.48,9.01049723]
[1736132506243,0.87003026,215.53,215.47,9.01049723]
[1736132508349,0.87003026,215.53,215.46,9.01049723]
[1736132508350,9.01049723,215.53,215.46,9.01049723]
[1736132508844,29.31866489,215.54,215.47,9.01049723]
[1736132509668,9.01049723,215.52,215.46,9.01049723]
[1736132510625,0.87010843,215.51,215.46,9.01049723]
[1736132511257,9.01049723,215.5,215.41,0.65891649]
[1736132511456,9.01049723,215.5,215.44,9.01049723]
[1736132511751,0.87014624,215.49,215.43,9.01049723]
[1736132512142,0.87014624,215.49,215.4,136.2]
[1736132512143,9.88064347,215.49,215.4,20.0]
[1736132512456,9.88064347,215.49,215.43,9.01049723]
[1736132513735,9.88064347,215.49,215.4,20.0]
[1736132514135,9.88064347,215.49,215.42,9.01049723]
[1736132515452,0.87014624,215.49,215.44,9.01049723]
[1736132516165,0.87014624,215.49,215.45,9.01049723]
[1736132516460,0.87020955,215.5,215.45,9.01049723]
[1736132516648,0.87020955,215.5,215.44,9.01049723]
[1736132516956,0.87020231,215.52,215.48,9.01049723]
[1736132517159,7.56571957,215.54,215.49,9.01049723]
[1736132517361,7.25755191,215.53,215.49,9.01049723]
[1736132517955,0.30816766,215.54,215.49,9.01049723]
[1736132519759,9.31866489,215.54,215.48,9.01049723]
[1736132520438,0.30816766,215.54,215.48,9.01049723]
[1736132520637,0.30816766,215.54,215.49,9.01049723]
[1736132522063,0.30816766,215.54,215.52,9.01049723]
[1736132522262,0.30816766,215.54,215.51,9.01049723]
[1736132524560,0.30816766,215.54,215.46,2.29460287]
[1736132524771,0.30816766,215.54,215.5,9.01049723]
[1736132525066,0.30816766,215.54,215.49,9.01049723]
[1736132526159,0.30816766,215.54,215.5,9.01049723]
[1736132527376,0.30816766,215.54,215.51,9.01049723]
[1736132528056,0.30816766,215.54,215.52,9.01049723]
[1736132528246,0.30816766,215.54,215.51,9.01049723]
[1736132529697,0.30816766,215.54,215.52,9.01049723]
[1736132530488,0.30816766,215.54,215.53,9.01049723]
[1736132534275,0.30816766,215.54,215.53,145.21049723]
[1736132534484,0.30816766,215.54,215.53,146.76709723]
[1736132534691,0.30816766,215.54,215.53,172.76398123]
[1736132535453,0.86948292,215.7,215.57,20.0]
[1736132535650,7.25755191,215.71,215.65,9.01049723]
[1736132535850,0.86942742,215.72,215.66,9.01049723]
[1736132536049,9.87992465,215.72,215.65,9.01049723]
[1736132536580,9.87992465,215.72,215.61,0.65725286]
[1736132536581,9.01049723,215.7,215.58,136.2]
[1736132536779,9.01049723,215.67,215.61,9.01049723]
[1736132536985,9.8799733,215.66,215.59,9.01049723]
[1736132537202,9.01049723,215.66,215.59,9.01049723]
[1736132537683,9.01049723,215.66,215.6,9.01049723]
[1736132538250,0.86949391,215.65,215.53,137.7566]
[1736132538456,9.01049723,215.63,215.57,9.01049723]
[1736132539291,9.01049723,215.65,215.58,9.01049723]
[1736132539461,9.88007599,215.67,215.6,9.01049723]
[1736132539781,9.01049723,215.66,215.55,0.65788661]
[1736132539980,9.01049723,215.66,215.59,9.01049723]
[1736132540883,9.01049723,215.65,215.59,9.01049723]
[1736132541393,9.01049723,215.66,215.6,9.01049723]
[1736132541696,9.01049723,215.67,215.6,9.01049723]
[1736132541992,9.01049723,215.67,215.55,0.65788661]
[1736132541993,9.01049723,215.66,215.55,0.65788661]
[1736132542175,9.01049723,215.66,215.6,9.01049723]
[1736132542899,9.01049723,215.65,215.59,9.01049723]
[1736132543395,9.01049723,215.66,215.6,9.01049723]
[1736132544668,0.86947241,215.7,215.62,9.01049723]
[1736132544877,0.86936441,215.71,215.65,9.01049723]
[1736132545162,9.01049723,215.71,215.65,9.01049723]
[1736132546598,21.46916164,215.72,215.66,9.01049723]
[1736132547212,21.46916164,215.72,215.65,9.01049723]
[1736132547576,9.01049723,215.69,215.63,9.01049723]
[1736132547782,9.01049723,215.66,215.61,136.2]
[1736132547967,9.01049723,215.63,215.56,1.6312]
[1736132548888,9.88014545,215.62,215.56,1.6312]
[1736132549075,9.88014545,215.62,215.55,9.01049723]
[1736132550820,9.01049723,215.61,215.52,142.8501]
[1736132550981,9.88029086,215.6,215.53,9.01049723]
[1736132551420,18.1168,215.64,215.54,9.01049723]
[1736132551421,9.01049723,215.61,215.54,9.01049723]
[1736132551724,9.01049723,215.61,215.55,9.01049723]
[1736132552516,9.01049723,215.62,215.55,9.01049723]
[1736132552815,18.1168,215.64,215.57,9.01049723]
[1736132552816,9.01049723,215.64,215.57,9.01049723]
[1736132553583,9.88010437,215.63,215.56,9.01049723]
[1736132553808,9.01049723,215.62,215.55,9.01049723]
[1736132554079,0.8697148,215.61,215.55,9.01049723]
[1736132554282,9.01049723,215.62,215.55,9.01049723]
[1736132554593,9.01049723,215.63,215.56,9.01049723]
[1736132554793,0.86967168,215.62,215.56,9.01049723]
[1736132554994,9.88016891,215.62,215.55,9.01049723]
[1736132557826,9.88016891,215.62,215.56,9.01049723]
[1736132558294,0.86967168,215.62,215.56,9.01049723]
[1736132559697,9.88017275,215.64,215.57,9.01049723]
[1736132560485,9.01049723,215.63,215.56,9.01049723]
[1736132560689,0.86968671,215.62,215.56,9.01049723]
[1736132561626,29.88018394,215.62,215.55,9.01049723]
[1736132562429,9.01049723,215.61,215.54,9.01049723]
[1736132562627,0.86979077,215.6,215.54,9.01049723]
[1736132562789,0.86979077,215.6,215.53,9.01049723]
[1736132564634,9.01049723,215.59,215.52,9.01049723]
[1736132564823,0.86987332,215.58,215.52,9.01049723]
[1736132567947,9.01049723,215.6,215.53,9.01049723]
[1736132568124,0.86982383,215.59,215.53,9.01049723]
[1736132569439,9.01049723,215.58,215.5,1.6255]
[1736132569651,9.01049723,215.55,215.46,136.2]
[1736132569943,0.86998837,215.54,215.48,9.01049723]
[1736132570118,32.78738123,215.53,215.44,1.5214]
[1736132570328,0.87015444,215.52,215.46,9.01049723]
[1736132570506,0.87015444,215.52,215.47,9.01049723]
[1736132570712,0.87012872,215.53,215.47,9.01049723]
[1736132570907,20.0,215.54,215.49,9.01049723]
[1736132571146,0.87006458,215.56,215.5,9.01049723]
[1736132571442,9.88056181,215.56,215.49,9.01049723]
[1736132572123,9.01049723,215.55,215.48,9.01049723]
[1736132572324,0.87004255,215.54,215.48,9.01049723]
[1736132572624,29.88053978,215.54,215.47,9.01049723]
[1736132572825,9.01049723,215.53,215.47,9.01049723]
[1736132573135,0.87010989,215.52,215.47,9.01049723]
[1736132573512,0.87010989,215.52,215.44,137.7214]
[1736132573739,0.87010989,215.52,215.47,9.01049723]
[1736132574126,0.87010989,215.52,215.46,9.01049723]
[1736132574335,0.87010989,215.52,215.47,9.01049723]
[1736132574650,9.88059086,215.53,215.46,9.01049723]
[1736132575022,9.88059086,215.53,215.47,9.01049723]
[1736132576946,9.88059086,215.53,215.46,9.01049723]
[1736132579149,9.88059086,215.53,215.47,9.01049723]
[1736132579336,0.87009363,215.53,215.49,9.01049723]
[1736132579751,8.0782,215.55,215.51,9.01049723]
[1736132579752,6.5569,215.55,215.51,9.01049723]
[1736132579926,20.87004918,215.56,215.52,9.01049723]
[1736132580456,29.88054641,215.56,215.5,9.01049723]
[1736132580618,0.87004918,215.56,215.52,9.01049723]
[1736132580817,0.86991437,215.57,215.51,9.01049723]
[1736132581046,29.01049723,215.58,215.44,136.85853946]
[1736132581047,0.86991837,215.58,215.53,9.01049723]
[1736132581344,0.86983889,215.59,215.53,9.01049723]
[1736132581513,9.01049723,215.58,215.52,9.01049723]
[1736132581717,0.86991108,215.57,215.52,9.01049723]
[1736132582032,0.86991108,215.57,215.53,9.01049723]
[1736132582749,0.86988333,215.58,215.53,9.01049723]
[1736132583731,0.86988333,215.58,215.48,0.65846392]
[1736132583732,0.86987156,215.63,215.57,9.01049723]
[1736132583936,0.86964991,215.64,215.58,9.01049723]
[1736132584123,9.88014714,215.64,215.58,9.01049723]
[1736132584326,0.86964991,215.64,215.58,9.01049723]
[1736132584635,29.88014714,215.64,215.58,9.01049723]
[1736132584846,20.0,215.63,215.59,9.01049723]
[1736132585036,0.86964991,215.64,215.59,9.01049723]
[1736132585235,0.8696235,215.65,215.59,9.01049723]
[1736132585461,0.8696235,215.65,215.51,0.65795772]
[1736132585635,0.86958065,215.69,215.63,9.01049723]
[1736132587155,9.01049723,215.68,215.62,9.01049723]
[1736132587356,9.01049723,215.66,215.6,9.01049723]
[1736132587532,0.86958061,215.65,215.59,9.01049723]
[1736132589262,0.86958061,215.65,215.6,9.01049723]
[1736132589438,9.01049723,215.68,215.62,9.01049723]
[1736132589638,0.86956438,215.7,215.62,9.01049723]
[1736132589639,9.01049723,215.69,215.62,9.01049723]
[1736132589839,0.86945161,215.68,215.62,9.01049723]
[1736132590671,0.86945161,215.68,215.63,9.01049723]
[1736132590852,9.01049723,215.69,215.63,9.01049723]
[1736132591043,9.87994778,215.71,215.65,9.01049723]
[1736132591438,11.5873,215.76,215.66,9.01049723]
[1736132591439,0.86933896,215.72,215.66,9.01049723]
[1736132591660,9.01049723,215.74,215.67,9.01049723]
[1736132592067,9.87971827,215.74,215.67,9.01049723]
[1736132592562,20.0,215.72,215.68,9.01049723]
[1736132593267,16.41631895,215.77,215.7,14.19631895]
[1736132593467,0.86918687,215.78,215.72,14.19631895]
[1736132593669,20.62071895,215.79,215.72,14.19631895]
[1736132593965,20.62071895,215.79,215.69,14.19631895]
[1736132593966,14.19631895,215.75,215.69,14.19631895]
[1736132594370,14.19631895,215.76,215.7,14.19631895]
[1736132594542,0.86913551,215.76,215.7,14.19631895]
[1736132594944,14.19631895,215.77,215.71,14.19631895]
[1736132595367,15.06539669,215.78,215.71,14.19631895]
[1736132597301,15.06538803,215.79,215.73,14.19631895]
[1736132597443,0.86906908,215.79,215.74,14.19631895]
[1736132597642,15.06538803,215.79,215.73,14.19631895]
[1736132598250,14.19631895,215.79,215.73,14.19631895]
[1736132599477,14.19631895,215.8,215.74,14.19631895]
[1736132600072,20.0,215.78,215.74,14.19631895]
[1736132600272,20.0,215.78,215.73,14.19631895]
[1736132601179,20.0,215.82,215.73,14.19631895]
[1736132601492,20.0,215.82,215.76,14.19631895]
[1736132601790,15.06525012,215.83,215.77,14.19631895]
[1736132602373,15.06516213,215.84,215.77,14.19631895]
[1736132602577,15.0651357,215.84,215.77,14.19631895]
[1736132602783,14.19631895,215.83,215.76,14.19631895]
[1736132603596,14.19631895,215.83,215.73,136.2]
[1736132603597,14.19631895,215.84,215.77,14.19631895]
[1736132604816,20.0,215.82,215.78,14.19631895]
[1736132605499,14.19631895,215.86,215.8,14.19631895]
[1736132607097,20.0,215.84,215.81,14.19631895]
[1736132607799,20.0,215.84,215.8,14.19631895]
[1736132608198,14.19631895,215.89,215.82,14.19631895]
[1736132608373,0.86860161,215.9,215.84,14.19631895]
[1736132608702,14.19631895,215.92,215.86,14.19631895]
[1736132608876,16.6193526,215.93,215.86,14.19631895]
[1736132609200,14.19631895,215.91,215.84,14.19631895]
[1736132609496,14.19631895,215.88,215.82,14.19631895]
[1736132609669,15.06492455,215.87,215.8,14.19631895]
[1736132609874,14.19631895,215.86,215.79,16.41631895]
[1736132610073,15.06492455,215.87,215.8,14.19631895]
[1736132610376,14.19631895,215.87,215.8,14.19631895]
[1736132610781,14.19631895,215.86,215.8,14.19631895]
[1736132611373,14.19631895,215.88,215.82,14.19631895]
[1736132611588,15.06491742,215.88,215.82,14.19631895]
[1736132611784,15.06491742,215.88,215.79,2.22]
[1736132611785,14.19631895,215.87,215.81,14.19631895]
[1736132612506,11.5801,215.89,215.79,2.22]
[1736132612507,23.776884,215.88,215.83,14.19631895]
[1736132613087,15.06493441,215.89,215.83,14.19631895]
[1736132613289,14.19631895,215.91,215.85,14.19631895]
[1736132613600,27.32911895,215.93,215.87,14.19631895]
[1736132613770,14.19631895,215.92,215.85,14.19631895]
[1736132614275,14.19631895,215.92,215.86,14.19631895]
[1736132614902,14.19631895,215.92,215.85,14.19631895]
[1736132615106,14.19631895,215.9,215.84,14.19631895]
[1736132615803,15.06479459,215.9,215.83,14.19631895]
[1736132615998,14.19631895,215.89,215.83,14.19631895]
[1736132616200,14.19631895,215.88,215.82,14.19631895]
[1736132616500,14.19631895,215.89,215.83,14.19631895]
[1736132616677,14.19631895,215.9,215.84,14.19631895]
[1736132617105,14.19631895,215.91,215.85,14.19631895]
[1736132617922,14.19631895,215.91,215.84,14.19631895]
[1736132618204,15.06485836,215.9,215.84,14.19631895]
[1736132618404,23.776884,215.89,215.84,14.19631895]
[1736132618591,23.776884,215.89,215.8,142.8582]
[1736132618592,14.19631895,215.88,215.82,14.19631895]
[1736132618906,14.19631895,215.87,215.81,14.19631895]
[1736132621604,23.776884,215.89,215.83,14.19631895]
[1736132621806,14.19631895,215.88,215.82,14.19631895]
[1736132622010,14.19631895,215.87,215.81,14.19631895]
[1736132622213,37.97320295,215.89,215.82,14.19631895]
[1736132622410,38.84179401,215.89,215.82,14.19631895]
[1736132622715,23.776884,215.89,215.83,14.19631895]
[1736132623599,23.776884,215.89,215.84,14.19631895]
[1736132625204,1.5546,215.93,215.86,14.19631895]
[1736132625414,15.75091895,215.93,215.87,14.19631895]
[1736132625915,23.776884,215.92,215.87,14.19631895]
[1736132626632,23.776884,215.92,215.86,14.19631895]
[1736132626785,37.97320295,215.92,215.85,14.19631895]
[1736132627802,14.19631895,215.91,215.85,14.19631895]
[1736132628390,14.19631895,215.89,215.82,14.19631895]
[1736132628599,14.19631895,215.88,215.82,14.19631895]
[1736132628999,9.07432098,215.88,215.82,9.07432098]
[1736132629421,9.07432098,215.87,215.81,9.07432098]
[1736132629622,9.07432098,215.85,215.78,1.5181]
[1736132629924,9.07432098,215.85,215.78,10.59242098]
[1736132630298,9.07432098,215.85,215.79,9.07432098]
[1736132630694,9.07432098,215.86,215.8,9.07432098]
[1736132630896,32.85120498,215.87,215.8,9.07432098]
[1736132631199,37.95706088,215.87,215.8,14.18017688]
[1736132634128,14.18017688,215.86,215.8,14.18017688]
[1736132634421,23.776884,215.8,215.73,1.5399]
[1736132634629,14.18017688,215.78,215.73,1.5399]
[1736132635231,14.18017688,215.78,215.72,14.18017688]
[1736132635402,14.18017688,215.78,215.71,14.18017688]
[1736132635914,14.18017688,215.77,215.71,14.18017688]
[1736132636121,15.04916781,215.77,215.7,14.18017688]
[1736132636294,14.18017688,215.76,215.7,14.18017688]
[1736132637054,14.18017688,215.77,215.7,14.18017688]
[1736132638412,14.18017688,215.77,215.71,14.18017688]
[1736132639327,23.776884,215.78,215.72,14.18017688]
[1736132640542,37.95706088,215.78,215.72,14.18017688]
[1736132642352,37.95706088,215.78,215.71,14.18017688]
[1736132642514,37.95706088,215.76,215.7,14.18017688]
[1736132642834,37.95706088,215.76,215.69,14.18017688]
[1736132642835,14.18017688,215.75,215.69,14.18017688]
[1736132643024,15.04932898,215.75,215.69,14.18017688]
[1736132643908,37.95706088,215.74,215.67,14.18017688]
[1736132644127,14.18017688,215.71,215.62,1.5768]
[1736132644336,15.0495285,215.7,215.63,14.18017688]
[1736132645203,23.776884,215.7,215.65,14.18017688]
[1736132645741,14.18017688,215.72,215.65,14.18017688]
[1736132646028,24.64614947,215.71,215.65,14.18017688]
[1736132647548,23.776884,215.71,215.65,14.18017688]
[1736132647745,24.64622622,215.71,215.65,14.18017688]
[1736132648939,14.18017688,215.7,215.63,14.18017688]
[1736132649240,24.64622622,215.71,215.62,14.18017688]
[1736132649241,15.04959248,215.69,215.62,14.18017688]
[1736132649411,23.776884,215.68,215.63,14.18017688]
[1736132649611,23.776884,215.68,215.64,14.18017688]
[1736132649807,23.776884,215.69,215.64,14.18017688]
[1736132650842,14.18017688,215.72,215.65,14.18017688]
[1736132651042,20.0,215.71,215.68,14.18017688]
[1736132651213,20.0,215.71,215.6,150.38017688]
[1736132651214,20.0,215.71,215.69,14.18017688]
[1736132651420,0.86928235,215.74,215.69,14.18017688]
[1736132651724,0.86921138,215.75,215.69,14.18017688]
[1736132651935,20.0,215.73,215.69,14.18017688]
[1736132653243,20.0,215.73,215.68,14.18017688]
[1736132653547,20.0,215.73,215.69,14.18017688]
[1736132653727,20.0,215.73,215.7,14.18017688]
[1736132654342,20.0,215.74,215.7,14.18017688]
[1736132655051,20.0,215.74,215.7,9.0836972]
[1736132657756,20.0,215.74,215.69,9.0836972]
[1736132657956,23.776884,215.75,215.69,9.0836972]
[1736132658162,0.86917514,215.76,215.7,9.0836972]
[1736132658323,0.86917514,215.76,215.71,9.0836972]
[1736132660364,0.86917514,215.76,215.7,9.0836972]
[1736132661459,10.6382972,215.77,215.65,1.5583]
[1736132661460,0.86914156,215.8,215.74,9.0836972]
[1736132661628,0.86914156,215.82,215.79,9.0836972]
[1736132661827,9.0836972,215.8,215.71,9.0836972]
[1736132662022,9.0836972,215.78,215.71,9.0836972]
[1736132662320,23.776884,215.76,215.66,6.6091]
[1736132662555,0.86915362,215.75,215.66,6.6091]
[1736132663257,9.95285082,215.75,215.68,9.0836972]
[1736132663758,29.0836972,215.76,215.7,9.0836972]
[1736132664568,20.0,215.76,215.7,9.0836972]
[1736132664879,20.86913339,215.76,215.7,9.0836972]
[1736132667165,20.86913339,215.76,215.71,9.0836972]
[1736132667665,20.86913339,215.76,215.72,9.0836972]
[1736132669068,0.86913339,215.76,215.72,9.0836972]
[1736132669464,0.86913339,215.76,215.71,9.0836972]
[1736132670874,0.86913339,215.76,215.7,9.0836972]
[1736132671033,9.95283059,215.76,215.7,9.0836972]
[1736132671758,9.95283059,215.76,215.66,6.6091]
[1736132671759,0.86913339,215.76,215.71,9.0836972]
[1736132675165,0.86913339,215.76,215.72,9.0836972]
[1736132675356,24.64601704,215.77,215.72,9.0836972]
[1736132675964,23.776884,215.76,215.72,9.0836972]
[1736132676269,0.86913304,215.77,215.72,9.0836972]
[1736132676477,23.776884,215.76,215.72,9.0836972]
[1736132676965,0.86913304,215.77,215.74,9.0836972]
[1736132677145,0.86908746,215.79,215.74,9.0836972]
[1736132677351,23.776884,215.78,215.66,6.6091]
[1736132677551,0.86908782,215.77,215.72,9.0836972]
[1736132678851,20.0,215.8,215.76,9.0836972]
[1736132679167,20.0,215.8,215.71,36.3347888]
[1736132679168,0.86891762,215.82,215.78,9.0836972]
[1736132679768,0.86891762,215.82,215.77,9.0836972]
[1736132681988,9.0836972,215.8,215.74,9.0836972]
[1736132682141,9.95265734,215.8,215.74,9.0836972]
[1736132683478,9.95265734,215.8,215.73,1.6475]
[1736132683771,9.95265734,215.8,215.74,9.0836972]
[1736132683983,9.95265734,215.8,215.73,10.7311972]
[1736132684270,9.0836972,215.79,215.73,10.7311972]
[1736132684982,9.95265032,215.8,215.74,9.0836972]
[1736132685160,9.0836972,215.8,215.74,9.0836972]
[1736132685348,9.95263704,215.8,215.74,9.0836972]
[1736132685683,9.0836972,215.81,215.75,9.0836972]
[1736132685876,0.86893862,215.8,215.73,1.6475]
[1736132686061,9.95263582,215.8,215.74,9.0836972]
[1736132687674,9.95263582,215.8,215.73,10.7311972]
[1736132688158,9.0836972,215.78,215.67,149.3396]
[1736132688368,9.0836972,215.76,215.7,9.0836972]
[1736132688568,9.0836972,215.75,215.69,9.0836972]
[1736132689470,9.0836972,215.73,215.67,1.5479]
[1736132689648,9.0836972,215.73,215.67,10.6315972]
[1736132690979,9.0836972,215.74,215.67,10.6315972]
[1736132691149,32.8605812,215.74,215.68,9.0836972]
[1736132692876,9.0836972,215.73,215.67,1.5479]
[1736132693080,9.0836972,215.71,215.62,136.2]
[1736132693259,9.95303784,215.7,215.64,9.0836972]
[1736132694602,9.95303784,215.7,215.63,9.0836972]
[1736132695587,9.95303784,215.7,215.64,9.0836972]
[1736132695881,0.86934064,215.7,215.64,9.0836972]
[1736132696084,9.95303784,215.7,215.64,9.0836972]
[1736132696483,9.0836972,215.7,215.64,9.0836972]
[1736132696670,9.0836972,215.71,215.65,9.0836972]
[1736132697680,23.776884,215.7,215.65,9.0836972]
[1736132699203,23.776884,215.68,215.61,7.937]
[1736132699384,23.776884,215.68,215.65,9.0836972]
[1736132700298,23.776884,215.68,215.64,9.0836972]
[1736132700506,23.776884,215.68,215.61,1.6383]
[1736132700813,0.86945376,215.67,215.62,9.0836972]
[1736132701877,24.64638441,215.68,215.64,9.0836972]
[1736132702078,20.86940635,215.69,215.66,9.0836972]
[1736132702273,20.0,215.69,215.66,9.0836972]
[1736132702610,0.86936899,215.72,215.67,9.0836972]
[1736132702783,0.86936899,215.72,215.69,9.0836972]
[1736132702976,8.1268199,215.73,215.69,9.0836972]
[1736132703177,23.776884,215.72,215.69,9.0836972]
[1736132703504,43.776884,215.72,215.69,9.0836972]
[1736132703701,43.776884,215.72,215.7,9.0836972]
[1736132703702,20.0,215.72,215.7,9.0836972]
[1736132703907,7.25755191,215.75,215.71,9.0836972]
[1736132704077,8.12666546,215.78,215.74,9.0836972]
[1736132704472,23.776884,215.77,215.74,9.0836972]
[1736132704974,23.776884,215.78,215.74,9.0836972]
[1736132705496,23.776884,215.78,215.75,9.0836972]
[1736132705683,23.776884,215.78,215.76,9.0836972]
[1736132706093,20.0,215.79,215.77,9.0836972]
[1736132706311,0.86892549,215.82,215.78,9.0836972]
[1736132706482,20.0,215.8,215.79,9.0836972]
[1736132706804,7.25755191,215.83,215.79,9.0836972]
[1736132706805,23.776884,215.82,215.79,9.0836972]
[1736132706970,23.776884,215.82,215.71,174.1405888]
[1736132706971,23.776884,215.82,215.8,9.0836972]
[1736132707172,0.86880699,215.84,215.79,9.0836972]
[1736132707681,23.776884,215.83,215.79,9.0836972]
[1736132707881,7.25755191,215.86,215.8,9.0836972]
[1736132708204,23.776884,215.84,215.8,9.0836972]
[1736132708395,0.86874959,215.86,215.82,9.0836972]
[1736132708698,7.25755191,215.87,215.83,9.0836972]
[1736132709107,20.0,215.87,215.83,9.0836972]
[1736132709708,20.0,215.88,215.84,9.0836972]
[1736132709936,0.86864467,215.89,215.85,9.0836972]
[1736132710208,8.12611246,215.91,215.86,9.0836972]
[1736132710509,23.776884,215.9,215.86,9.0836972]
[1736132711229,0.86849115,215.92,215.86,9.0836972]
[1736132711587,23.776884,215.91,215.85,9.0836972]
[1736132712082,23.776884,215.91,215.8,1.5108]
[1736132712083,9.0836972,215.9,215.8,1.5108]
[1736132712300,32.8605812,215.88,215.81,9.0836972]
[1736132712491,0.86867836,215.87,215.81,9.0836972]
[1736132713603,9.0836972,215.85,215.79,9.0836972]
[1736132713813,11.5783,215.92,215.78,9.0836972]
[1736132713814,32.8605812,215.84,215.78,9.0836972]
[1736132714125,9.0836972,215.81,215.75,10.5944972]
[1736132714495,23.776884,215.82,215.78,9.0836972]
[1736132714927,9.0836972,215.84,215.78,9.0836972]
[1736132715231,23.776884,215.84,215.81,9.0836972]
[1736132715912,3.06871256,215.87,215.82,9.0836972]
[1736132716112,3.06871256,215.87,215.75,1.5108]
[1736132716113,2.2,215.87,215.83,9.0836972]
[1736132716305,0.86863799,215.89,215.85,9.0836972]
[1736132716508,0.86860932,215.9,215.85,9.0836972]
[1736132716720,0.86856236,215.92,215.88,9.0836972]
[1736132716910,0.86856236,215.92,215.87,9.0836972]
[1736132718234,23.776884,215.91,215.87,9.0836972]
[1736132719027,0.86856236,215.92,215.87,14.17196821]
[1736132719340,20.0,215.91,215.87,14.17196821]
[1736132721720,20.0,215.91,215.88,14.17196821]
[1736132722205,20.0,215.91,215.89,14.17196821]
[1736132722530,20.0,215.91,215.83,1.5736]
[1736132722531,20.0,215.91,215.88,14.17196821]
[1736132722703,20.0,215.91,215.87,14.17196821]
[1736132723333,20.0,215.91,215.88,14.17196821]
[1736132723506,37.94885221,215.94,215.88,14.17196821]
[1736132724425,20.0,215.93,215.89,14.17196821]
[1736132725233,37.94885221,215.95,215.89,14.17196821]
[1736132725408,23.776884,215.95,215.9,14.17196821]
[1736132725901,15.04046875,215.96,215.9,14.17196821]
[1736132726105,0.86850054,215.96,215.91,14.17196821]
[1736132726833,23.776884,215.95,215.9,14.17196821]
[1736132727539,0.8683521,215.94,215.89,14.17196821]
[1736132727836,15.04032031,215.94,215.88,14.17196821]
[1736132728207,37.94885221,215.95,215.9,14.17196821]
[1736132728405,23.776884,215.95,215.9,14.17196821]
[1736132728717,0.86839504,215.96,215.91,14.17196821]